Cogmind - Beta 9.2 @@@ ROGUE MODE // 2019.11.14 @ 18:56:00 Player: LaGrange Result: Destroyed by H-55 Commando with Gauss Rifle Performance ------------- Evolutions (2) 1000 Regions Visited (4) 800 Robots Destroyed (33) 165 Value Destroyed (593) 593 Prototype IDs (1) 20 Alien Tech Used (0) 0 Bonus (-66) -66 TOTAL SCORE: 2512 Bonus ------- Friendly Fire -66 Cogmind --------- Core Integrity 0/550 Matter 52/300 Energy 100/100 System Corruption 0% Temperature Cool (9) Movement Core (1100) Ox21 Location -8/Materials Parts ------- > --- POWER (1) -------- (None) > --- PROPULSION (3) --- (None) > --- UTILITY (4) ------ High-capacity Storage Unit High-capacity Storage Unit > --- WEAPON (3) ------- (None) > --- INVENTORY (20) --- Faulty Heavy Ion Engine Improved Heat Sink Small Storage Unit Medium Storage Unit Transport Network Coupler Improved Targeting Computer ECM Suite Hardlight Generator Heavy EM Pulse Gun Small Laser Makeshift Spear Peak State ------------ > --- POWER ------------ Light Ion Engine > --- PROPULSION ------- Light Treads Light Treads Light Treads > --- UTILITY ---------- High-capacity Storage Unit High-capacity Storage Unit Small Battery Improved Terrain Scanner > --- WEAPON ----------- Light Assault Rifle Assault Cannon Grenade Launcher > --- INVENTORY -------- Light Ion Engine Light Ion Engine Heavy Ion Engine Heavy Ion Engine Heavy Ion Engine Aluminum Leg Aluminum Leg Improved Heat Sink Small Storage Unit Medium Storage Unit Transport Network Coupler Improved Targeting Computer ECM Suite Improved Light Armor Plating Hardlight Generator Heavy EM Pulse Gun Small Laser Grenade Launcher Makeshift Spear [Rating: 17] Favorites ----------- Power Light Ion Engine Engine Light Ion Engine Propulsion Light Treads Treads Light Treads Leg Aluminum Leg Wheel Compact Wheel Utility High-capacity Storage Unit Device ECM Suite Storage High-capacity Storage Unit Protection Improved Light Armor Plating Weapon Grenade Launcher Energy Gun Small Laser Ballistic Gun Light Assault Rifle Ballistic Cannon Assault Cannon Launcher Grenade Launcher Piercing Weapon Makeshift Spear Build | -11 -10 -10 -9 -8 ------- Run | Scr Mat Min Mat Mat Slots Evolved 4 | . . . 2 2 Power . | . . . . . Propulsion 1 | . . . 1 . Utility 2 | . . . 1 1 Weapon 1 | . . . . 1 Parts Attached 35 | 6 1 6 4 18 Power 6 | 1 . 1 . 4 Engine 6 | 1 . 1 . 4 Core . | . . . . . Reactor . | . . . . . Propulsion 7 | 2 . 2 1 2 Treads 3 | . . 2 1 . Leg 2 | . . . . 2 Wheel 2 | 2 . . . . Hover . | . . . . . Flight . | . . . . . Utility 8 | 1 1 1 3 2 Device 3 | . 1 . 1 1 Storage 4 | 1 . 1 2 . Processor . | . . . . . Hackware . | . . . . . Protection 1 | . . . . 1 Artifact . | . . . . . Weapon 14 | 2 . 2 . 10 Energy Gun 4 | 1 . 1 . 2 Energy Cannon . | . . . . . Ballistic Gun 3 | 1 . . . 2 Ballistic Cannon 1 | . . . . 1 Launcher 5 | . . 1 . 4 Special Weapon . | . . . . . Impact Weapon . | . . . . . Slashing Weapon . | . . . . . Piercing Weapon 1 | . . . . 1 Special Melee Weapon . | . . . . . Unidentified Prototypes 1 | . . . . 1 Parts Lost 18 | . . 2 . 16 Power 4 | . . . . 4 Propulsion 6 | . . 1 . 5 Utility 3 | . . . . 3 Weapon 5 | . . 1 . 4 Highest Loss Streak 14 | . . 1 . 14 Average Slot Usage (%) 97 | . 96 99 100 90 Engine 12 | . 14 14 11 9 Treads 17 | . . 10 33 20 Wheel 9 | . 28 17 . . Device 11 | . 10 14 10 8 Storage 19 | . 14 14 22 26 Energy Gun 10 | . 14 14 11 1 Ballistic Gun 2 | . 14 . . 6 Launcher 11 | . . 14 11 11 Naked Turns . | . . . . . Heaviest Build 80 | 10 11 40 72 80 Greatest Support 60 | 32 32 40 60 60 Greatest Overweight (x) 25 | 2 . 2 1 25 Average Overweight (x) . | . . . . 1 Largest Inventory Capacity 20 | 6 6 12 20 20 Average Capacity 13 | 5 6 10 16 20 Most Carried 19 | 6 6 12 13 19 Average Carried 10 | 3 5 10 10 14 Final Capacity 20 | 6 6 12 20 20 Final Carried 13 | 6 6 12 13 11 Class Distribution -------------------- 63% | Mutant 18% | Hauler-Mutant 17% | Hauler-Skirmisher Dominant Class ---------------- Mutant | -10/Materials Mutant | -10/Mines Hauler-Mutant | -9/Materials Hauler-Skirmisher | -8/Materials Resources | -11 -10 -10 -9 -8 ----------- Run | Scr Mat Min Mat Mat Matter Collected 578 | 241 29 160 73 75 Remotely . | . . . . . Salvage Created 516 | . . 174 68 274 Parts 39 | . . 9 16 14 Haulers Intercepted 2 | . . . . 2 Recyclers Shooed 2 | . . . 1 1 Parts Field Recycled . | . . . . . Retrieved Matter . | . . . . . Parts Self-Destructed . | . . . . . Prevented . | . . . . . Kills | -11 -10 -10 -9 -8 ------- Run | Scr Mat Min Mat Mat Combat Hostiles Destroyed 24 | . . 15 3 6 Guns 3 | . . 1 2 . AOE 21 | . . 14 1 6 Classes Destroyed 7 | . . 3 3 1 Worker 1 | . . . 1 . Builder 3 | . . . 1 2 Hauler 2 | . . . . 2 Watcher 3 | . . . 2 1 Swarmer 9 | . . 6 3 . Grunt 8 | . . 2 . 6 Assembled 7 | . . 7 . . Best Kill Streak 7 | . . 7 5 5 Combat Bots Only 7 | . . 7 3 2 Max Kills in Single Turn 3 | . . 3 3 3 Gunslinging . | . . . . . Exploded 3 | . . 3 1 2 Melee . | . . . . . Uniques/NPCs Destroyed . | . . . . . Combat | -11 -10 -10 -9 -8 -------- Run | Scr Mat Min Mat Mat Damage Taken 2652 | . . 307 223 2122 Core 623 | . . 38 20 565 Absorbed by Shields . | . . . . . Core Remaining (%) 93 | 100 . 84 95 . Volleys Fired 28 | . . 10 6 12 Largest 3 | . . 2 2 3 Hottest 104 | . . 80 70 104 Shots Fired 64 | . . 20 12 32 Gun 25 | . . 10 6 9 Cannon 8 | . . . . 8 Launcher 31 | . . 10 6 15 Special . | . . . . . Kinetic 14 | . . . . 14 Thermal 18 | . . 10 6 2 Explosive 31 | . . 10 6 15 Electromagnetic 1 | . . . . 1 Robot Hit Streak 13 | . . 4 9 13 Robot Miss Streak 2 | . . 2 1 1 Penetration Max . | . . . . . Secondary Targets . | . . . . . Shots Hit Robots 45 | . . 13 9 23 Core Hits 61 | . . 26 11 24 Critical Hits . | . . . . . Critical Kills . | . . . . . Critical Parts Destroyed . | . . . . . Melee Attacks 1 | . . . . 1 Impact . | . . . . . Slashing . | . . . . . Piercing 1 | . . . . 1 Sneak Attacks . | . . . . . Combat Hostiles . | . . . . . Follow-up Attacks . | . . . . . Damage Inflicted 2317 | . . 867 303 1147 Guns 170 | . . 69 63 38 Cannons 142 | . . . . 142 Explosions 1972 | . . 798 240 934 Melee 33 | . . . . 33 Ramming . | . . . . . Kinetic 155 | . . . . 155 Thermal 142 | . . 69 63 10 Explosive 1972 | . . 798 240 934 Electromagnetic 15 | . . . . 15 Impact . | . . . . . Slashing . | . . . . . Piercing 33 | . . . . 33 Highest Corruption . | . . . . . Average Corruption . | . . . . . Corruption Purged . | . . . . . Overload Shots . | . . . . . Overflow Damage 45 | . . 11 12 22 Projectiles . | . . . . . Explosions 45 | . . 11 12 22 Melee . | . . . . . Knockbacks 1 | . . . . 1 Impact . | . . . . . Kinetic 1 | . . . . 1 Secondary . | . . . . . Self-Inflicted Damage 312 | . . 125 180 7 Shots 13 | . . 7 5 1 Rammed . | . . . . . Targets Rammed . | . . . . . Kicked . | . . . . . Crushed . | . . . . . Highest Temperature 81 | . . 81 . 64 Average Temperature 25 | . . 24 . 26 Received Heat Transfer 744 | . . 42 . 702 Siege Activations . | . . . . . Robots Corrupted . | . . . . . Combat Hostiles . | . . . . . Parts Fried . | . . . . . Impact Corruptions . | . . . . . Robots Melted . | . . . . . Combat Hostiles . | . . . . . Parts Melted . | . . . . . Heat Transferred 349 | . . 174 150 25 Parts Sabotaged . | . . . . . Parts Stolen . | . . . . . Parts Stripped . | . . . . . Power Chain Reactions . | . . . . . Missiles Intercepted . | . . . . . Alert | -11 -10 -10 -9 -8 ------- Run | Scr Mat Min Mat Mat Peak Influence 229 | . 11 144 229 214 Average Influence 107 | . 9 96 149 128 Maximum Alert Level 1 | . . . 1 1 Low Security (%) 93 | 100 100 100 84 86 Level 1 6 | . . . 15 13 Level 2 . | . . . . . Level 3 . | . . . . . Level 4 . | . . . . . Level 5 . | . . . . . High Security . | . . . . . Max Security . | . . . . . Squads Dispatched 3 | . . . 1 2 Investigation 1 | . . . 1 . Extermination . | . . . . . Reinforcement 1 | . . . . 1 Assault . | . . . . . Garrison 1 | . . . . 1 Intercept . | . . . . . Construction Impeded . | . . . . . Haulers Reinforced . | . . . . . Stealth | -11 -10 -10 -9 -8 --------- Run | Scr Mat Min Mat Mat Distress Signals 3 | . . . . 3 Communications Jammed . | . . . . . Distress Signals . | . . . . . Times Spotted 45 | . . 17 8 20 Peak Tracking Total 9 | . . 5 4 9 Tactical Retreats 2 | . . 1 . 1 Traps | -11 -10 -10 -9 -8 ------- Run | Scr Mat Min Mat Mat Traps Triggered . | . . . . . Indirectly . | . . . . . Trap Hack Attempts . | . . . . . Triggered . | . . . . . Disarmed . | . . . . . Reprogrammed . | . . . . . Reused . | . . . . . Traps Extracted . | . . . . . Installed . | . . . . . Triggered . | . . . . . Machines | -11 -10 -10 -9 -8 ---------- Run | Scr Mat Min Mat Mat Machines Disabled 6 | . . 1 4 1 Max in Single Turn 2 | . . 1 2 1 Machines Sabotaged . | . . . . . Garrisons Compromised . | . . . . . Overloaded Fab Kills . | . . . . . Fab Network Shutdowns . | . . . . . Hacking | -11 -10 -10 -9 -8 --------- Run | Scr Mat Min Mat Mat Machines Accessed 6 | . 1 1 2 2 Terminals 6 | . 1 1 2 2 Fabricators . | . . . . . Repair Stations . | . . . . . Recycling Units . | . . . . . Scanalyzers . | . . . . . Garrison Access . | . . . . . Total Hacks 19 | . 4 3 4 8 Successful 10 | . 2 . 3 5 Failed 9 | . 2 3 1 3 Catastrophic 1 | . . 1 . . Database Lockouts . | . . . . . Manual 3 | . . 3 . . Terminals 19 | . 4 3 4 8 Fabricators . | . . . . . Repair Stations . | . . . . . Recycling Units . | . . . . . Scanalyzers . | . . . . . Garrison Access . | . . . . . Terminal Hacks 10 | . 2 . 3 5 Record 3 | . 2 . . 1 Branch Access Points 1 | . . . . 1 Alert Level 1 | . . . 1 . Unreport Threat 1 | . . . . 1 Surveillance Status 1 | . . . . 1 Investigation Status 1 | . . . . 1 Hauler Manifests 1 | . . . 1 . Zone Layout 1 | . . . 1 . Fabricator Hacks . | . . . . . Repair Station Hacks . | . . . . . Recycling Unit Hacks . | . . . . . Scanalyzer . | . . . . . Garrison Access Hacks . | . . . . . Unauthorized Hacks . | . . . . . Terminals . | . . . . . Fabricators . | . . . . . Repair Stations . | . . . . . Recycling Units . | . . . . . Scanalyzers . | . . . . . Garrison Access . | . . . . . Data Cores Recovered . | . . . . . Used . | . . . . . Hacking Detections 5 | . 1 . 2 2 Full Trace Events 2 | . 1 . 1 . Feedback Events . | . . . . . Feedback Blocked . | . . . . . Robot Schematics Acquired . | . . . . . Robots Built . | . . . . . Matter . | . . . . . Time . | . . . . . Total Robot Build Rating . | . . . . . Part Schematics Acquired . | . . . . . Parts Built . | . . . . . Matter . | . . . . . Time . | . . . . . Total Part Build Rating . | . . . . . Parts Repaired . | . . . . . Time . | . . . . . Parts Recycled . | . . . . . Recycled Matter . | . . . . . Retrieved Matter . | . . . . . Retrieved Components . | . . . . . Parts Scanalyzed . | . . . . . Part Schematics Acquired . | . . . . . Parts Damaged . | . . . . . Bothacking | -11 -10 -10 -9 -8 ------------ Run | Scr Mat Min Mat Mat Used RIF Installer . | . . . . . Robots Hacked . | . . . . . Non-combat . | . . . . . Combat . | . . . . . Robot Hacks Applied . | . . . . . Relay Couplers Released . | . . . . . Robots Rewired . | . . . . . Allies Hacked . | . . . . . Hacks Repelled . | . . . . . Allies | -11 -10 -10 -9 -8 -------- Run | Scr Mat Min Mat Mat Total Allies 2 | . . 2 . . Largest Group 2 | . . 2 . . Highest-Rated Group 42 | . . 42 . . Highest-Rated Ally 31 | . . 31 . . Total Orders . | . . . . . Ally Attacks 8 | . . 8 . . Total Damage 148 | . . 148 . . Kills 4 | . . 4 . . Allies Corrupted . | . . . . . Allies Melted . | . . . . . Intel | -11 -10 -10 -9 -8 ------- Run | Scr Mat Min Mat Mat Robot Analysis Total . | . . . . . Derelict Logs Recovered 2 | . . 2 . . Drone Launches . | . . . . . Drone Recoveries . | . . . . . Exploration | -11 -10 -10 -9 -8 ------------- Run | Scr Mat Min Mat Mat Turns Passed 1493 | 61 85 651 346 350 Spaces Moved 846 | 46 82 442 147 129 Core 8 | 6 . . . 2 Treads 391 | . . 130 147 114 Legs 13 | . . . . 13 Wheels 434 | 40 82 312 . . Hover . | . . . . . Flight . | . . . . . Fastest Speed 50 | 50 100 100 160 180 Average Speed 140 | 101 100 122 169 208 Slowest Speed 1300 | 150 100 160 180 1300 Overloaded Moves . | . . . . . Propulsion Burnouts . | . . . . . Robots Hopped . | . . . . . Cave-ins Triggered . | . . . . . Exploration Rate (%) 29 | 3 22 80 19 22 Regions Visited 4 Branch Regions 1 Pre-discovered Areas 1 | . . 1 . . Known Exits Taken 1 | . . 1 . . Unknown Exits Taken 3 | 1 1 . 1 . Scrap Searched 2 | . . 2 . . Spaces Dug . | . . . . . Terrain Destroyed 169 | . . 87 36 46 Melee . | . . . . . Projectile 1 | . . . . 1 AOE 168 | . . 87 36 45 Actions | -11 -10 -10 -9 -8 --------- Run | Scr Mat Min Mat Mat Total 1090 | 57 84 531 231 187 Wait 152 | . . 64 70 18 Move 842 | 45 81 441 146 129 Hop . | . . . . . Pick Up 27 | 6 1 8 4 8 Fast Attach 7 | 6 1 . . . Attach 14 | . . 2 2 10 Detach . | . . . . . Swap 14 | . . 4 2 8 Drop 5 | . 1 2 1 1 Fire 28 | . . 10 6 12 Melee 1 | . . . . 1 Ram . | . . . . . Kick . | . . . . . Crush . | . . . . . Escape Stasis . | . . . . . Rewire . | . . . . . Trap . | . . . . . Miscellaneous . | . . . . . Route ------- -11/Scrapyard -10/Materials -10/Mines -9/Materials -8/Materials History --------- Turn | Location | Event 18 | -11/Scrapyard | Discovered new exit (range 16) 62 | -11/Scrapyard | Entered Materials 130 | -10/Materials | Discovered new exit (range 4) 147 | -10/Materials | Entered Mines 180 | -10/Mines | Learned location of Zion (-7) 304 | -10/Mines | Build established: Mutant 423 | -10/Mines | Assembled infested the area 428 | -10/Mines | Assisted by a Guerilla fighting off Assembled 463 | -10/Mines | A weapon hastily lodged in a ceiling crevice suddenly fell to the ground 483 | -10/Mines | Identified exit to Materials 559 | -10/Mines | Destroyed 7 combat bots 798 | -10/Mines | Entered Materials 798 | -9/Materials | Evolved 2 slots: Propulsion x1, Utility x1 1094 | -9/Materials | Discovered new exit (range 9) 1144 | -9/Materials | Entered another Materials area 1144 | -8/Materials | Evolved 2 slots: Utility x1, Weapon x1 1198 | -8/Materials | Garrison activated, responded to threat 1485 | -8/Materials | Core integrity fell below 50% 1492 | -8/Materials | Core integrity fell below 20% 1494 | -8/Materials | Destroyed by H-55 Commando with Gauss Rifle Last Messages --------------- 01465_ Aluminum Leg destroyed. 01470_ Slug penetrates G-47 Trooper. 01470_ G-47 Trooper destroyed. 01470_ Critical hit. 01471_ Slug penetrates Wall. 01472_ Aluminum Leg destroyed. 01473_ Penetrated by Slug. 01473_ R-06 Scavenger collects Aluminum Leg. 01476_ R-06 Scavenger collects Lgt. Nuclear Core. 01478_ U-05 Engineer destroyed. 01479_ Penetrated by Slug. 01480_ Imp. Terrain Scanner destroyed. 01481_ U-05 Engineer lays Concrete. 01482_ R-06 Scavenger collects Terrain Scan Processor. 01485_ Penetrated by Slug. 01486_ R-06 Scavenger collects Structural Scanner. 01487_ Penetrated by Slug. 01489_ Imp. Light Armor Plating destroyed. 01490_ Faulty Hvy. Ion Engine destroyed. 01490_ Penetrated by Slug. Map ----- +----------------------------------------------------+ | ?????????????????????????????????????????????????? | | ?????????????????????????????????????????????????? | | ?????????????????????????????????????????????????? | | ?????????????????????????????????????????????????? | | ?????????????????????????????????????????????????? | | ?????????????????????????????????????????????????? | | ?????????????????????????????????????????????????? | | ??????????????????????????????? ?????????????????? | | ?????????????????"?????????????? ????????????????? | | ?????????????????????????????##??#???????????????? | | ?????????????????#?????????#?#???????????????????? | | ???????????????????????????????????????????????"?? | | ??????????????#??#????????????????? ???????????? | | ?????????????????#????############# #? ????????? | | ?????????????????#????# #?# # ?????????? | | ?????????????????????##! #?# #? ????????? | | ?????????????????#????# """ #?# #??????????? | | ??????????????????????# """ #?# #???????#### | | ????????????? ????????#""" """ #?# ##??????# | | ???????????????????#??#"T #?# #??#????# | | ??????????????????????#""" ### #???????# | | ????? ????????????#?#?# #?# #???????# | | ????? ###################;####### #??#????# | | ???? t^ !!! !#???????# | | ???? u!!! #???????# | | ??? u ^@^ !! ###????## | | ????# hg ############ | | ????# % Yg | | ????# uhYg | | ????# a r rr ** | | ????# """ % #####################+### | | ????# """ a "" !!##?#### ## #?# # | | ??" # """ """ !#????########### # | | ??" + """ !#?#????????????# # | | ????# """ !##?#?#?????????# # | | ????# !#??#?#????#????# + | | ????# !!##???#??????????# # | | ####??????#?#??????# #### | | * #?????#??#????#????# #??? | | // #?????#??#??#??#???# #??? | | ?! " // [!#??????????????????#######?? | | ? "%" / [!##?????????????##??????????? | | ?? " ##??????#???????#??????????? | | ?? #???????????#????#???????#?? | | ??######+##############????#?#????????????????#??? | | ?????? ??????#??????????#???????#?????##???????? | | ?????? ?????????????????????????????????????????? | | ????? ???????????????#?#????????????????????????? | | ???????????????????#?????????????????????????? ??? | | ?????????????????????????????????????????????????? | +----------------------------------------------------+ Best States ------------- Heat Dissipation 31 Energy Generation 10 Energy Capacity 225 Matter Stores 300 Matter Capacity 300 Sight Range 16 Terrain Scan Range 16 Terrain Scan Density 10 ECM Strength 1 Armor Coverage 150 Evasion (%) 40 Recoil Reduction 3 Item Schematics ----------------- None Robot Schematics ------------------ None Fabricated ------------ Nothing Alien Tech Used ----------------- None Achievements -------------- Everything Is Under Control I Survived The Infestation Loot Pinata Challenges ------------ None Game ------ Seed InsulatedParticleFirepult Manual? 0 Play Time 00:56:46 Cumulative 22.1 hours Start 2019.11.14 @ 17:58:31 End 2019.11.14 @ 18:56:00 Sessions 1 Manual Loads 0 Difficulty Rogue Special Mode None Game No. 17 Rogue 17 Adventurer 0 Explorer 0 Win Type - Total 0 Types 0/0/0/0/0/0/0 Lore% 15 Gallery% 19 Achievement% 13 Wizard Run 0 Options --------- ASCII 0 Keyboard 0 Movement Mouse Keybinds 0 Fullscreen 1 Font 18/Terminus Map View 76x50 Tactical HUD 1 Map Filters NONE Filters NONE Steam 1 RUN: b31198a9-837a-4fb1-bb6d-32a339ed3438